bitfinex-derivatives/quotes_ETHF0:USTF0_20241207
["timestamp","ask_amount","ask_price","bid_price","bid_amount"]
[1733561833341,0.17542,3984.9,3984.8,0.4108]
[1733561833637,4.28923341,3984.9,3984.8,0.48918238]
[1733561834242,4.28923341,3984.9,3984.8,0.07838238]
[1733561834440,0.17543,3984.7,3984.5,0.17544]
[1733561834744,0.17543,3984.7,3984.6,0.07838586]
[1733561835647,0.90601341,3984.7,3984.6,0.07838586]
[1733561835945,0.90601341,3984.7,3984.6,0.25381586]
[1733561836740,0.90601341,3984.7,3984.6,0.07838586]
[1733561836942,1.08144341,3984.7,3984.6,0.07838586]
[1733561839248,1.08144341,3984.7,3984.6,0.66671586]
[1733561839446,3.8658,3984.9,3984.7,0.17543]
[1733561839642,4.77181341,3984.9,3984.8,0.53598921]
[1733561839951,4.77181341,3984.9,3984.8,0.93948735]
[1733561840144,4.94723341,3984.9,3984.8,4.87594397]
[1733561840351,4.77181341,3984.9,3984.8,4.87594397]
[1733561840657,4.11381341,3984.9,3984.8,4.87594397]
[1733561840854,4.28923341,3984.9,3984.8,4.87594397]
[1733561841355,4.28923341,3984.9,3984.8,4.70051397]
[1733561841747,4.28923341,3984.9,3984.8,4.87594397]
[1733561842746,3.2078,3984.9,3984.8,5.51937376]
[1733561842945,4.28923341,3984.9,3984.8,5.59775417]
[1733561843248,4.28923341,3984.9,3984.8,4.51485841]
[1733561843655,4.11381341,3984.9,3984.8,5.51937486]
[1733561843855,4.11381341,3984.9,3984.8,5.59775542]
[1733561844055,4.11381341,3984.9,3984.8,5.51937486]
[1733561844858,4.11381341,3984.9,3984.8,5.51939059]
[1733561845062,4.11381341,3984.9,3984.8,5.59777204]
[1733561845766,4.11381341,3984.9,3984.8,11.51415322]
[1733561847159,7.05008775,3984.9,3984.8,1.01787147]
[1733561847656,3.2078,3984.9,3984.8,1.01787147]
[1733561847862,3.2078,3984.9,3984.8,0.65731261]
[1733561848761,7.22550775,3984.9,3984.8,0.65731261]
[1733561848951,7.61490775,3984.9,3984.8,0.65731261]
[1733561849157,7.43948775,3984.9,3984.8,0.65731261]
[1733561850362,7.61490775,3984.9,3984.8,0.65731261]
[1733561850661,7.43948775,3984.9,3984.8,0.65731261]
[1733561851355,7.61490775,3984.9,3984.8,0.25381261]
[1733561851551,4.67863341,3984.9,3984.8,0.25381261]
[1733561851760,4.67863341,3984.9,3984.8,0.17543]
[1733561851954,4.50321341,3984.9,3984.7,0.3896]
[1733561852159,0.17543,3984.8,3984.7,0.3896]
[1733561852456,0.17543,3984.8,3984.7,0.17543]
[1733561853259,0.17543,3984.8,3984.7,0.2538131]
[1733561853460,0.17543,3984.8,3984.7,0.17543]
[1733561853776,0.17543,3984.8,3984.7,0.25381328]
[1733561853961,0.17543,3984.8,3984.7,0.17543]
[1733561854457,0.17543,3984.8,3984.7,0.25381316]
[1733561854659,8.6045353,3984.9,3984.8,0.17543]
[1733561854857,8.6045353,3984.9,3984.8,0.53598924]
[1733561854858,4.67863341,3984.9,3984.8,0.53598924]
[1733561855064,4.67863341,3984.9,3984.8,0.61437039]
[1733561855257,4.67863341,3984.9,3984.8,4.9442917]
[1733561855461,4.67863341,3984.9,3984.8,5.19810306]
[1733561855666,4.67863341,3984.9,3984.8,11.02951553]
[1733561855860,4.67863341,3984.9,3984.8,10.87275064]
[1733561856162,4.67863341,3984.9,3984.8,10.95113291]
[1733561856361,4.67863341,3984.9,3984.8,5.04133908]
[1733561857061,4.67863341,3984.9,3984.8,4.83754473]
[1733561857259,4.67863341,3984.9,3984.8,5.04133789]
[1733561858559,4.67863341,3984.9,3984.8,4.86590789]
[1733561858765,4.67863341,3984.9,3984.8,5.04133789]
[1733561859066,4.67863341,3984.9,3984.8,0.45760543]
[1733561859267,4.50321341,3984.9,3984.8,5.06368894]
[1733561860069,4.11381341,3984.9,3984.8,5.06368894]
[1733561860361,4.11381341,3984.9,3984.8,4.98530667]
[1733561860565,4.11381341,3984.9,3984.8,5.06368516]
[1733561860963,0.4158,3985.3,3984.8,4.88825516]
[1733561861160,0.4158,3985.3,3985.2,0.17541]
[1733561861361,1.32181341,3985.3,3985.2,0.45758165]
[1733561861763,1.49721341,3985.3,3985.2,0.45758165]
[1733561861964,1.32181341,3985.3,3985.2,0.37920316]
[1733561862971,1.49721341,3985.3,3985.2,0.37920316]
[1733561863173,1.32181341,3985.3,3985.2,0.37920316]
[1733561865368,1.32181341,3985.3,3985.2,6.29203064]
[1733561865570,3.8658,3985.6,3985.2,4.80952213]
[1733561865766,0.90601341,3985.4,3985.3,0.45756273]
[1733561866069,3.2078,3985.6,3985.5,0.17539]
[1733561866269,3.2078,3985.6,3985.5,0.45755273]
[1733561866466,2.93945013,3985.8,3985.5,0.28296273]
[1733561866667,2.93945013,3985.8,3985.7,0.17539]
[1733561866972,2.93945013,3985.8,3985.7,0.45755273]
[1733561867367,2.93945013,3985.8,3985.7,0.25375957]
[1733561867667,2.93945013,3985.8,3985.7,0.45748117]
[1733561869466,2.93945013,3985.8,3985.7,3.66528117]
[1733561869872,2.93945013,3985.8,3985.7,3.5869116]
[1733561870469,2.93945013,3986.3,3985.7,3.4115216]
[1733561870673,2.93945013,3986.3,3986.2,0.17536]
[1733561871265,2.93945013,3986.3,3985.7,3.2078]
[1733561871266,4.09620385,3986.4,3985.7,3.2078]
[1733561871463,4.09620385,3986.4,3986.3,0.17536]
[1733561872273,1.15675372,3986.4,3986.3,0.17536]
[1733561872576,4.09620385,3986.4,3986.3,0.17536]
[1733561873270,1.15675372,3986.4,3986.3,0.17536]
[1733561873473,4.09620385,3986.4,3986.1,0.17537]
[1733561873972,3.11481013,3986.3,3986.1,0.17537]
[1733561874478,3.11481013,3986.3,3986.0,0.17537]
[1733561874775,0.90601341,3986.1,3986.0,0.17537]
[1733561875367,0.90601341,3986.1,3985.7,3.2078]
[1733561875573,0.90601341,3985.8,3985.6,1.1829]
[1733561875775,0.90601341,3985.8,3984.7,3.2078]
[1733561875975,0.90601341,3985.2,3985.1,0.17541]
[1733561876387,0.3928,3985.2,3985.1,0.17541]
[1733561876881,3.2078,3985.3,3985.2,0.17541]
[1733561877077,3.2078,3985.3,3985.2,0.2537784]
[1733561877272,0.90601341,3985.5,3985.4,0.1754]
[1733561878082,0.90601341,3985.5,3985.4,0.25376695]
[1733561878975,0.90601341,3985.5,3985.4,0.07836695]
[1733561879178,1.08140341,3985.5,3985.4,0.07837007]
[1733561879581,1.08140341,3985.5,3985.3,0.1754]
[1733561879782,3.2078,3985.4,3985.3,0.1754]
[1733561879983,3.2078,3985.4,3985.3,0.2537731]
[1733561884774,3.2078,3985.4,3985.3,0.0783731]
[1733561884979,3.2078,3985.4,3985.3,0.2537731]
[1733561886588,3.2078,3985.4,3985.3,0.0783731]
[1733561887082,3.3832,3985.4,3985.3,0.07837374]
[1733561887588,3.2078,3985.4,3985.3,0.07837374]
[1733561887785,3.3832,3985.4,3985.3,0.07837374]
[1733561888083,0.17542,3985.0,3984.8,0.17542]
[1733561888280,0.3992,3984.9,3984.8,0.17542]
[1733561888483,0.3992,3984.9,3984.8,0.37920147]
[1733561888686,0.3992,3984.9,3984.8,0.20378147]
[1733561888687,0.57462,3984.9,3984.8,0.20378147]
[1733561890283,0.57462,3984.9,3984.8,0.20378324]
[1733561890481,0.57462,3984.9,3984.8,0.12540507]
[1733561890687,0.57462,3984.9,3984.8,0.07837942]
[1733561890886,0.57462,3984.9,3984.8,0.2037865]
[1733561890887,3.78242,3984.9,3984.8,0.2037865]
[1733561891089,3.78242,3984.9,3984.8,0.07837942]
[1733561891889,3.607,3984.9,3984.5,0.97364]
[1733561892096,1.08144341,3984.6,3984.5,0.97364]
[1733561892298,0.90601341,3984.6,3984.5,0.97364]
[1733561893098,1.08144341,3984.6,3984.5,0.97364]
[1733561893597,0.17544,3984.5,3984.3,0.17545]
[1733561893898,0.17544,3984.4,3984.2,0.17545]
[1733561894087,1.08146341,3984.3,3984.0,0.8049]
[1733561894288,1.08146341,3984.3,3984.1,0.17545]
[1733561894696,1.08146341,3984.3,3984.0,0.8049]
[1733561894697,1.08146341,3984.3,3984.0,0.98036]
[1733561894997,0.90601341,3984.3,3984.2,0.17545]
[1733561895195,0.90601341,3984.3,3984.0,0.8049]
[1733561895497,1.08146341,3984.3,3984.1,0.17546]
[1733561895896,1.08146341,3984.3,3984.0,0.8049]
[1733561896093,1.08146341,3984.3,3984.0,0.98036]
[1733561896486,0.90601341,3984.3,3984.0,0.98036]
[1733561896690,1.08146341,3984.3,3984.1,0.17546]
[1733561896999,1.08146341,3984.3,3984.0,0.8049]
[1733561897200,0.17545,3984.2,3984.0,0.98036]
[1733561898290,0.90601341,3984.3,3984.0,0.8049]
[1733561898494,0.90601341,3984.3,3984.2,0.17545]
[1733561900100,1.08146341,3984.3,3984.2,0.20380527]
[1733561900602,1.08146341,3984.3,3984.2,4.80115227]
[1733561900795,1.08146341,3984.3,3984.2,4.13546333]
[1733561901099,4.28926341,3984.3,3984.2,4.13546333]
[1733561901290,4.28926341,3984.3,3984.2,0.07838664]
[1733561901896,0.17547,3983.9,3983.8,0.3943]
[1733561902097,1.08148341,3983.9,3983.8,0.598145]
[1733561904205,1.08148341,3983.9,3983.8,0.59813828]
[1733561905198,1.08148341,3983.9,3983.8,0.59813857]
[1733561907003,1.08148341,3983.9,3983.8,0.59814032]
[1733561907201,1.08148341,3983.9,3983.8,0.3943]
[1733561908600,0.58807,3983.9,3983.8,0.3943]
[1733561909899,0.4126,3983.9,3983.8,0.3943]
[1733561910100,0.4126,3983.9,3983.8,0.56977]
[1733561910295,0.17546,3984.1,3983.8,0.56977]
[1733561910296,0.17546,3984.1,3983.9,0.17546]
[1733561910596,0.90601341,3983.9,3983.8,0.56977]
[1733561912000,1.08148341,3983.9,3983.8,0.3943]
[1733561912300,0.90601341,3983.9,3983.8,0.56977]
[1733561912508,1.08148341,3983.9,3983.8,0.56977]
[1733561912699,0.17547,3983.8,3983.6,0.17548]
[1733561913006,1.08148341,3983.9,3983.7,0.56717]
[1733561913601,0.90601341,3983.9,3983.8,0.17547]
[1733561914315,1.08148341,3983.9,3983.8,0.17547]
[1733561915202,1.08148341,3983.9,3983.8,0.37930775]
[1733561915706,0.90601341,3983.9,3983.8,0.37930775]
[1733561916404,1.08148341,3983.9,3983.8,0.37930775]
[1733561917204,0.90601341,3983.9,3983.8,0.37930775]
[1733561917808,0.90601341,3983.9,3983.8,0.37929982]
[1733561918610,1.08148341,3983.9,3983.8,0.37929982]
[1733561918811,1.08148341,3983.9,3983.8,0.20382982]
[1733561920113,0.90601341,3983.9,3983.8,0.37929982]
[1733561921213,0.90601341,3983.9,3983.8,0.37930078]
[1733561922213,0.90601341,3983.9,3983.8,0.25386645]
[1733561924813,0.90601341,3983.9,3983.8,0.25386642]
[1733561925017,1.08148341,3983.9,3983.8,0.3793007]
[1733561925217,1.08148341,3983.9,3983.8,0.2038307]
[1733561925410,1.08148341,3983.9,3983.8,0.3793007]
[1733561925612,0.25087051,3984.0,3983.8,0.2038307]
[1733561925916,0.42633051,3984.0,3983.9,0.25386642]
[1733561926420,0.42633051,3984.0,3983.9,0.07839642]
[1733561928111,0.25087051,3984.0,3983.9,0.07839609]
[1733561929112,0.42633051,3984.0,3983.9,0.20382975]
[1733561929819,0.42633051,3984.0,3983.9,0.28222583]
[1733561930614,0.42633051,3984.0,3983.9,10.86183903]
[1733561931117,1.33234392,3984.0,3983.9,10.86183903]
[1733561932416,1.33234392,3984.0,3983.9,4.95926217]
[1733561933522,1.15688392,3984.0,3983.9,4.95926217]
[1733561934222,1.33234392,3984.0,3983.9,4.95926217]
[1733561934822,1.33234392,3984.0,3983.9,4.95926154]
[1733561935118,1.33234392,3984.0,3983.9,4.88086565]
[1733561935314,1.33234392,3984.0,3983.9,12.82936404]
[1733561936121,1.33234392,3984.0,3983.9,4.95926155]
[1733561936424,1.33234392,3984.0,3983.9,12.82936404]
[1733561937026,1.33234392,3984.0,3983.9,12.75096815]
[1733561937215,1.33234392,3984.0,3983.9,12.62553472]
[1733561937731,5.25824581,3984.0,3983.9,0.07839589]
[1733561938024,5.25824581,3984.0,3983.8,0.17547]
[1733561938317,5.08278581,3984.0,3983.8,0.17547]
[1733561938725,0.17547,3983.9,3983.8,0.17547]
[1733561938922,5.08278581,3984.0,3983.9,0.07839628]
[1733561939117,0.17547,3983.9,3983.8,0.17547]
[1733561939321,0.17547,3983.9,3983.8,0.37930033]
[1733561940728,0.17547,3983.9,3983.8,0.20383033]
[1733561941123,5.08278581,3984.0,3983.7,0.56717]
[1733561941318,0.17547,3983.9,3983.8,0.20383041]
[1733561942223,4.10137189,3983.9,3983.8,0.20383041]
[1733561944333,0.17547,3983.9,3983.8,0.37930101]
[1733561944624,4.10551805,3983.9,3983.8,0.37930101]
[1733561945024,4.10551805,3983.9,3983.8,0.45769725]
[1733561945430,0.17547,3983.9,3983.8,0.45849725]
[1733561945621,0.17547,3983.9,3983.8,14.52495086]
[1733561946023,0.17547,3983.9,3983.8,14.34948086]
[1733561946232,0.17547,3983.9,3983.8,24.21882293]
[1733561946527,0.17547,3983.9,3983.8,14.34868086]
[1733561947335,0.17547,3983.9,3983.8,14.52415086]
[1733561947636,0.17547,3983.9,3983.8,14.34868086]
[1733561947932,0.17547,3983.9,3983.8,14.3486818]
[1733561948130,0.17547,3983.9,3983.8,24.2209237]
[1733561948328,0.17547,3983.9,3983.8,14.3486818]
[1733561949435,0.17547,3983.9,3983.8,24.2209237]
[1733561949733,0.17547,3983.9,3983.8,14.3486818]
[1733561950235,1.53928392,3984.0,3983.8,14.3486818]
[1733561950236,1.33234392,3984.0,3983.8,24.2209237]
[1733561950435,1.33234392,3984.0,3983.9,14.3486818]
[1733561951131,1.33234392,3984.0,3983.9,14.34869065]
[1733561951636,1.33234392,3984.0,3983.9,14.34868699]
[1733561952029,1.33234392,3984.0,3983.9,14.27028883]
[1733561952634,1.33234392,3984.0,3983.9,4.89265309]
[1733561952836,1.33234392,3984.0,3983.9,4.89508977]
[1733561954440,1.33234392,3984.0,3983.9,12.79300879]
[1733561954740,1.33234392,3984.0,3983.9,4.89508977]
[1733561955541,4.28043438,3984.0,3983.9,5.07055977]
[1733561955737,1.33234392,3984.0,3983.9,5.07055977]
[1733561956535,1.33234392,3984.0,3983.9,4.89508977]
[1733561956935,1.33234392,3984.0,3983.9,5.07055977]
[1733561957538,1.15688392,3984.0,3983.9,5.07055977]
[1733561957746,1.15688392,3984.0,3983.9,12.9687244]
[1733561958846,1.33234392,3984.0,3983.9,12.9687244]
[1733561959345,1.33234392,3984.0,3983.9,22.35172909]
[1733561959547,1.33234392,3984.0,3983.9,22.22629203]
[1733561959745,1.33234392,3984.0,3983.9,0.33226591]
[1733561960341,6.07492955,3984.0,3983.9,0.25386816]
[1733561960542,6.25038955,3984.0,3983.9,0.25386816]
[1733561960751,1.33234392,3984.0,3983.9,0.25386816]
[1733561961836,1.33234392,3984.0,3983.9,0.07839816]
[1733561962639,0.17547,3983.9,3983.7,0.56717]
[1733561962848,0.17547,3983.9,3983.8,0.0784]
[1733561965442,2.43759733,3984.0,3983.7,0.3917]
[1733561965749,0.17548,3983.6,3983.5,0.7818]
[1733561965950,5.99818697,3983.6,3983.5,0.86020269]
[1733561966257,1.08149341,3983.6,3983.5,0.86020269]
[1733561966745,1.08149341,3983.6,3983.5,0.3779]
[1733561966940,0.17548,3983.5,3983.4,0.3896]
[1733561967140,1.22148,3983.5,3983.4,0.46801008]
[1733561967349,1.22148,3983.5,3983.4,0.3896]
[1733561967549,1.22148,3983.5,3983.4,0.59347094]
[1733561967747,1.22148,3983.5,3983.4,5.22477392]
[1733561968148,1.22148,3983.5,3983.4,10.75768571]
[1733561968453,1.22148,3983.5,3983.4,4.83517392]
[1733561969947,1.22148,3983.5,3983.4,3.97607149]
[1733561970247,1.22148,3983.5,3983.4,3.94650055]
[1733561970843,0.17549,3983.4,3983.3,3.94650055]
[1733561971044,0.17549,3983.4,3983.1,6.33231179]
[1733561971045,4.91821341,3983.4,3983.2,3.94650055]
[1733561971346,4.91821341,3983.4,3983.1,5.92251179]
[1733561971347,4.91821341,3983.4,3983.1,3.94650055]
[1733561971553,0.1755,3983.2,3983.1,3.94650055]
[1733561972651,4.91821341,3983.4,3983.1,4.64501399]
[1733561972849,0.17549,3983.3,3983.2,3.9440547]
[1733561973051,1.08150341,3983.3,3983.2,3.9440547]
[1733561973558,0.1755,3983.2,3983.1,3.9440547]
[1733561973852,0.17549,3983.3,3983.1,3.9440547]
[1733561974057,0.17549,3983.3,3983.2,5.02684706]
[1733561974357,0.17549,3983.3,3983.2,4.73962423]
[1733561974553,3.2078,3983.4,3983.2,4.73962423]
[1733561974756,3.38329,3983.4,3983.3,3.94332423]
[1733561975152,4.04029,3983.4,3983.3,3.94332423]
[1733561975449,4.04029,3983.4,3983.3,4.64369068]
[1733561976154,10.85231682,3983.4,3983.1,3.06971452]
[1733561976352,0.17553,3982.5,3982.4,0.00080477]
[1733561976652,0.17554,3982.2,3982.0,0.3946]
[1733561976857,0.90601341,3982.1,3982.0,0.3946]
[1733561978951,4.28935341,3982.1,3982.0,0.3946]
[1733561981958,4.28935341,3982.1,3982.0,0.47303707]
[1733561982366,4.11381341,3982.1,3982.0,0.47303691]
[1733561982662,0.90601341,3982.3,3982.0,0.3946]
[1733561982859,0.657,3983.0,3982.1,0.07842737]
[1733561983067,0.90601341,3982.5,3982.4,0.17553]
[1733561983261,0.28161341,3982.5,3982.4,0.25395737]
[1733561985666,0.90601341,3982.6,3982.5,0.17553]
[1733561985960,0.90601341,3982.6,3982.5,0.63835737]
[1733561989864,0.90601341,3982.6,3982.5,0.76382752]
[1733561992569,0.90601341,3982.6,3982.5,0.76382211]
[1733561993361,1.08153341,3982.6,3982.5,0.58829211]
[1733561996169,1.08153341,3982.6,3982.5,0.2039069]
[1733561996767,4.94633341,3982.6,3982.5,0.2039069]
[1733561996971,4.94633341,3982.6,3982.5,0.07842573]
[1733561997764,4.94633341,3982.6,3982.2,0.4079]
[1733561997765,4.77081341,3982.6,3982.2,0.4079]
[1733561997968,1.08155341,3982.3,3982.2,0.4079]
[1733561998161,1.08155341,3982.3,3982.2,0.07843367]
[1733561998368,0.17554,3982.1,3982.0,0.3946]
[1733561998669,0.17554,3982.1,3982.0,0.47303554]
[1733562001071,0.17554,3982.1,3982.0,0.5985295]
[1733562001472,0.17554,3982.1,3982.0,0.2039295]
[1733562001473,3.38334,3982.1,3982.0,0.2039295]
[1733562001666,3.38334,3982.1,3982.0,0.07843554]
[1733562002074,3.2078,3982.1,3981.4,0.7647]
[1733562002274,1.08158341,3981.5,3981.4,0.7647]
[1733562002477,1.08158341,3981.5,3981.4,0.96865472]
[1733562002674,1.08158341,3981.5,3981.4,0.58645472]
[1733562002972,1.46678341,3981.5,3981.4,0.58645472]
[1733562003279,1.29121341,3981.5,3981.4,0.58645472]
[1733562003473,1.46678341,3981.5,3981.4,0.58645472]
[1733562003778,0.90601341,3981.5,3981.4,0.76203472]
[1733562003975,3.2078,3982.0,3981.4,0.58645472]
[1733562004175,0.90601341,3981.9,3981.5,0.60265472]
[1733562004475,0.90601341,3981.9,3981.8,0.17555]
[1733562004678,0.90601341,3981.9,3981.8,0.45793968]
[1733562004869,0.90601341,3981.9,3981.8,4.90144891]
[1733562008673,0.90601341,3981.9,3981.8,4.90144904]
[1733562009073,0.90601341,3981.9,3981.8,4.90142577]
[1733562012484,0.90601341,3981.9,3981.8,4.82299068]
[1733562012980,0.90601341,3981.9,3981.8,0.37948145]
[1733562015587,0.90601341,3981.9,3981.8,0.3794802]
[1733562016681,0.426537,3982.0,3981.9,0.17555]
[1733562016876,1.98757682,3982.0,3981.9,0.12549366]
[1733562017186,0.4389,3981.8,3980.6,7.89871902]
[1733562017487,0.4389,3981.8,3981.0,0.17559]
[1733562017488,3.38339,3981.2,3981.0,0.17559]
[1733562017882,0.3791,3981.1,3981.0,0.17559]
[1733562019481,1.28511341,3981.1,3981.0,0.17559]
[1733562020085,1.28511341,3981.1,3981.0,4.75073679]
[1733562020286,1.28511341,3981.1,3981.0,4.75073609]
[1733562020983,3.2078,3981.6,3981.5,0.17557]
[1733562021284,4.11381341,3981.6,3981.5,4.75024598]
[1733562021484,4.11381341,3981.6,3981.5,45.55024598]
[1733562021681,3.2078,3981.6,3981.5,53.5057103]
[1733562021982,3.2078,3981.6,3981.5,54.52752681]
[1733562022185,3.2078,3981.6,3981.5,54.40200466]
[1733562022490,3.2078,3981.6,3981.5,55.31150367]
[1733562022890,3.2078,3982.5,3981.6,0.43892]
[1733562023189,3.2078,3982.5,3982.0,0.17555]
[1733562023190,0.90601341,3982.1,3982.0,0.17555]
[1733562023495,0.90601341,3982.1,3982.0,4.82863465]
[1733562027490,1.08155341,3982.1,3982.0,4.65308465]
[1733562027697,1.08155341,3982.1,3982.0,4.57465284]
[1733562028195,1.08155341,3982.1,3982.0,0.12549901]
[1733562028996,1.08155341,3982.1,3982.0,0.20392954]
[1733562030596,0.90601341,3982.1,3982.0,0.37947954]
[1733562031393,0.90601341,3982.1,3982.0,0.20392954]
[1733562031599,1.08155341,3982.1,3982.0,0.20392954]
[1733562032405,1.08155341,3982.1,3982.0,0.20393041]
[1733562033294,1.08155341,3982.1,3982.0,0.07843477]
[1733562033696,5.19536682,3982.1,3982.0,0.07843477]
[1733562033902,5.19536682,3982.1,3981.1,8.28406771]
[1733562033903,4.55268341,3982.1,3981.1,8.28406771]
[1733562034106,0.17558,3981.3,3981.2,4.6555317]
[1733562034306,1.48539341,3981.3,3981.2,4.6555317]
[1733562034606,1.71631341,3981.3,3981.2,4.6555317]
[1733562035103,1.89189341,3981.3,3981.2,0.20396194]
[1733562035701,1.71631341,3981.3,3981.2,0.20396194]
[1733562035907,1.71631341,3981.3,3981.2,0.37954194]
[1733562036111,1.89189341,3981.3,3981.2,0.20396194]
[1733562036903,1.71631341,3981.3,3981.2,0.37954194]
[1733562037205,1.71631341,3981.3,3981.2,0.20396194]
[1733562037404,1.31251341,3981.3,3981.2,0.37954194]
[1733562038609,1.48809341,3981.3,3981.2,0.37954194]
[1733562039312,1.48809341,3981.3,3981.2,0.37954282]
[1733562041710,1.31251341,3981.3,3981.2,0.37954282]
[1733562042208,1.31251341,3981.3,3981.2,13.74240974]
[1733562042607,1.31251341,3981.3,3981.2,13.6639631]
[1733562042908,1.48809341,3981.3,3981.2,13.82085832]
[1733562043112,1.31251341,3981.3,3981.2,13.82085832]
[1733562043417,0.90601341,3981.4,3981.2,23.49123796]
[1733562043709,0.90601341,3981.4,3981.3,14.02857832]
[1733562044414,0.90601341,3981.4,3981.3,14.20415832]
[1733562044611,0.90601341,3981.4,3981.3,14.20451966]
[1733562044813,0.90601341,3981.4,3981.3,14.60851966]
[1733562045314,1.08159341,3981.4,3981.3,12.7204722]
[1733562045506,0.90601341,3981.4,3981.3,21.7079453]
[1733562045711,0.90601341,3981.4,3981.3,21.70812733]
[1733562046016,0.90601341,3981.4,3981.3,21.50416357]
[1733562046311,0.90601341,3981.4,3981.3,13.82152017]
[1733562046511,0.3897,3981.7,3981.6,0.17557]
[1733562046703,3.2078,3981.9,3981.8,0.17556]
[1733562046910,4.11381341,3981.9,3981.8,21.70657898]
[1733562047107,4.11381341,3981.9,3981.8,21.62814258]
[1733562047312,4.11381341,3981.9,3981.8,21.70657938]
[1733562047512,0.90601341,3981.9,3981.8,13.82078]
[1733562048515,0.4087,3982.1,3982.0,0.17555]
[1733562048817,0.90601341,3982.1,3982.0,13.82028534]
[1733562049315,0.90601341,3982.1,3982.0,14.20078534]
[1733562049713,0.90601341,3982.1,3982.0,13.91839524]
[1733562049910,0.90601341,3982.1,3982.0,14.12231693]
[1733562050109,0.90601341,3982.1,3982.0,14.12098176]
[1733562050415,0.90601341,3982.1,3982.0,0.75997169]
[1733562052512,0.90601341,3982.1,3982.0,0.25398142]
[1733562052907,0.90601341,3982.1,3982.0,0.25398236]
[1733562054717,0.4103,3982.3,3982.2,0.17554]
[1733562054913,1.31631341,3982.3,3982.2,0.25397236]
[1733562055620,0.657,3982.4,3982.3,0.17554]
[1733562055813,1.56301341,3982.4,3982.3,0.25397236]
[1733562056311,1.56301341,3982.4,3982.3,0.17554]
[1733562056512,1.73854341,3982.4,3982.3,0.25397115]
[1733562056714,1.73854341,3982.4,3982.3,0.17554]
[1733562057321,1.73854341,3982.4,3982.3,10.57382712]
[1733562057520,1.73854341,3982.4,3982.3,10.74936712]
[1733562057913,0.83253,3982.4,3982.3,10.74936712]
[1733562058221,1.73854341,3982.4,3982.3,10.74936712]
[1733562058423,1.73854341,3982.4,3982.3,10.74936764]
[1733562059620,1.73854341,3982.4,3982.3,4.83582746]
[1733562059819,1.73854341,3982.4,3982.3,4.8358298]
[1733562060025,1.73854341,3982.4,3982.3,4.6602898]
[1733562060718,1.73854341,3982.4,3982.3,10.57382998]
[1733562060917,1.73854341,3982.4,3982.3,4.6602898]
[1733562061117,1.73854341,3982.4,3982.3,0.20392362]
[1733562061922,1.73854341,3982.4,3982.3,4.65998134]
[1733562062224,1.73854341,3982.4,3982.2,6.08908018]
[1733562062225,0.17554,3982.3,3982.2,5.91354018]
[1733562062415,0.17554,3982.3,3982.2,10.67059163]
[1733562062616,0.17554,3982.3,3982.2,10.74902483]
[1733562063221,0.17554,3982.3,3982.2,10.57348483]
[1733562063820,0.17554,3982.3,3982.2,10.57389689]
[1733562064227,1.73854341,3982.4,3982.2,10.57389689]
[1733562064529,1.56301341,3982.4,3982.3,10.74943689]
[1733562064724,0.90601341,3982.4,3982.3,10.74943689]
[1733562064919,0.90601341,3982.4,3982.3,4.83589671]
[1733562065121,0.90601341,3982.4,3982.3,12.72061695]
[1733562065321,0.90601341,3982.4,3982.3,5.21689671]
[1733562065926,1.08154341,3982.4,3982.3,10.95422145]
[1733562066329,1.08154341,3982.4,3982.3,10.57322145]
[1733562066526,1.08154341,3982.4,3982.3,4.66035671]
[1733562066726,1.08154341,3982.4,3982.3,0.20392633]
[1733562067527,0.90601341,3982.4,3982.3,4.836801]
[1733562067730,0.90601341,3982.4,3982.3,10.74966574]
[1733562068330,1.08154341,3982.4,3982.3,10.74937724]
[1733562068627,0.90601341,3982.4,3982.3,4.8365125]
[1733562068828,0.90601341,3982.4,3982.3,4.83649071]
[1733562069338,0.90601341,3982.4,3982.3,5.61569071]
[1733562070434,0.90601341,3982.4,3982.3,11.52780026]
[1733562070731,0.90601341,3982.4,3982.3,5.61569071]
[1733562070925,0.90601341,3982.4,3982.3,11.52780026]
[1733562071528,1.08154341,3982.4,3982.3,10.96876026]
[1733562071733,1.08154341,3982.4,3982.3,4.66095071]
[1733562071934,1.08154341,3982.4,3982.3,0.20390454]
[1733562072328,1.08154341,3982.4,3982.3,0.0784299]
[1733562072931,1.08154341,3982.4,3982.3,0.2539699]
[1733562073531,1.08154341,3982.4,3982.3,0.0784299]
[1733562075740,1.08154341,3982.4,3982.3,0.07843018]
[1733562077732,1.08154341,3982.4,3982.3,0.2039176]
[1733562078136,1.08154341,3982.4,3982.3,0.07843018]
[1733562078340,1.08154341,3982.4,3982.3,0.20391756]
[1733562079239,0.17554,3982.3,3982.2,0.17554]
[1733562079436,0.17554,3982.3,3982.2,0.37945691]
[1733562080139,0.17554,3982.3,3982.2,0.45788662]
[1733562080442,0.17554,3982.3,3982.2,4.91439995]
[1733562080643,0.17554,3982.3,3982.2,10.8265095]
[1733562081239,1.08154341,3982.4,3982.3,0.17554]
[1733562081540,1.08154341,3982.4,3982.3,4.91439995]
[1733562082040,0.90601341,3982.4,3982.3,4.91439995]
[1733562082336,0.58283,3982.5,3982.4,0.17553]
[1733562082536,1.08154341,3982.4,3982.3,5.91210955]
[1733562082738,1.08154341,3982.4,3982.3,45.4612593]
[1733562083236,1.08154341,3982.4,3982.3,45.6367993]
[1733562084143,1.08154341,3982.4,3982.3,4.6612593]
[1733562085739,1.08154341,3982.4,3982.3,4.45734343]
[1733562085937,1.08154341,3982.4,3982.3,4.66126148]
[1733562086440,1.08154341,3982.4,3982.3,0.20391805]
[1733562087432,0.90601341,3982.4,3981.9,0.7979]
[1733562087637,4.91241524,3982.0,3981.9,0.97345]
[1733562087949,1.08156341,3982.1,3981.9,0.97345]
[1733562087950,5.99397865,3982.1,3982.0,0.17555]
[1733562088145,5.81842865,3982.1,3982.0,0.25398556]
[1733562088443,0.90601341,3982.1,3982.0,0.25398556]
[1733562088638,5.81966673,3982.1,3982.0,0.25398556]
[1733562089035,0.90601341,3982.1,3982.0,0.25398556]
[1733562090448,5.81976216,3982.1,3982.0,0.25398556]
[1733562091245,0.90601341,3982.1,3982.0,0.25398556]
[1733562092142,6.28025058,3982.5,3982.0,0.07843556]
[1733562092445,4.91744231,3982.3,3982.2,0.17554]
[1733562092948,3.93432293,3982.3,3982.2,45.11772039]
[1733562093242,2.68452293,3982.5,3982.4,0.17553]
[1733562093439,4.91744231,3982.8,3982.7,0.17552]
[1733562093636,4.91744231,3982.8,3982.7,0.25394576]
[1733562093838,4.91744231,3982.9,3982.8,0.17551]
[1733562094149,4.91744231,3982.9,3982.8,0.25393576]
[1733562094650,4.91744231,3983.0,3982.9,0.17551]
[1733562094842,4.91486075,3983.0,3982.9,0.37939427]
[1733562095448,4.91486075,3983.0,3982.9,0.45780562]